{"text_format":"3","workbook":"xlsx","n_sheets":3,"sheets":["汇总表","桥梁工程劳务","机械租赁费"],"not_rendered":{"defined_names":2},"read":"whole","date_system":"1900"}

{"sheet":"汇总表","index":0,"n_rows":8,"n_cols":5,"rows_kept":8,"merged":[[0,0,0,4],[5,0,5,4],[6,0,6,4],[7,0,7,4]]}
["2024年“A”项目桥梁工程工程报价汇总表"]
["序号","项目名称","采购最高控制价\n（元）","班组所报价格\n（元）","备注"]
[1,"桥梁工程劳务",{"$f":"桥梁工程劳务!G60","v":6365988.39}]
[2,"机械租赁费",{"$f":"机械租赁费!E14","v":{"v":1010000,"d":"1010000.00"}}]
[3,"合计：",{"$f":"SUM(C3:C4)","v":7375988.39}]
["报价单位名称（公章）："]
["法人或委托人姓名及电话："]
["时间："]

{"sheet":"桥梁工程劳务","index":1,"n_rows":61,"n_cols":10,"rows_kept":61,"merged":[[0,0,0,9],[1,0,3,0],[1,1,3,1],[1,2,3,2],[1,3,3,3],[1,4,3,4],[1,5,1,6],[1,7,1,8],[1,9,3,9],[2,5,3,5],[2,6,3,6],[2,7,3,7],[2,8,3,8],[4,1,4,2],[17,1,17,2],[32,1,32,2],[47,1,47,2],[52,1,52,2],[60,0,60,9]]}
["2024年“A”项目桥梁工程工程劳务施工清单与报价表"]
["序号","项目名称","项目特征描述","单位","工程量","采购最高限价（含税）",null,"投标报价",null,"备注"]
["","","","","","全费用综合单价（元）","合价（元）","含税全费用单价（元）","含税合价（元）"]
["","","","",""]
[" 一","桥面工程 ",null," "," "]
[1,"8cm厚C50混凝土","1.混凝土种类：现浇混凝土（混凝土甲供）混凝土泵送方式、模板措施、脚手架费用等投标人自行考虑，包含在综合单价内\n2.混凝土强度等级：C50\n3.混凝土运输及浇筑方式：投标人自行考虑\n4.未尽事宜满足设计及现行技术、质量验收规范要求","m3",{"$f":"3450*0.08","v":276},135,{"$f":"E6*F6","v":37260}]
[2,"8cm厚C30混凝土","1.混凝土种类：现浇混凝土（混凝土甲供）混凝土泵送方式、模板措施、脚手架费用等投标人自行考虑，包含在综合单价内\n2.混凝土强度等级：C30\n3.混凝土运输及浇筑方式：投标人自行考虑\n4.未尽事宜满足设计及现行技术、质量验收规范要求","m3",{"$f":"975*0.08","v":78},135,10530]
[3,"桥面柔性纤维增强型防水层防水涂料","1.材料品种：柔性纤维增强型防水涂料\n2.厚度：3mm\n3.未尽事宜满足设计及现行技术、质量验收规范要求","m2","5400",9.5,51300]
[4,"人行道C30钢筋混凝土预制板安装","1.部位：人行道板\n2.规格型号：1070*490*80mm C30钢筋混凝土预制板（预制板甲供）：\n3.工作内容：预制板到场卸车、转运、安装，转运和安装方式由投标人根据现场实际情况自行考虑，安装过程中可能产生的辅材包含在综合单价中\n4.未尽事宜满足设计及现行技术、质量验收规范要求","块",1800,18,32400]
[5,"C30混凝土枕梁","1.混凝土强度等级：C30（混凝土甲供）混凝土泵送方式及模板措施等投标人自行考虑，包含在综合单价内\n2.混凝土运输及浇筑方式：投标人自行考虑\n3.未尽事宜满足设计及现行技术、质量验收规范要求","m3","263.4",450,118530]
[7,"人行道栏杆","1.栏杆材质、规格 ：栏杆扶手材质Q235B钢管 φ108*5.5mm、φ70*3mm、φ26.8*2.75mm，立柱材料为ZG200-400铸钢件，底板材质Q235B  钢板φ230(380)*135*8mm，M12螺栓\n2.油漆品种、工艺要求：80μm环氧富锌底漆一道,80μm环氧云铁中间漆一道,100μm聚安脂面漆二道\n3.未尽事宜满足设计及现行技术、质量验收规范要求","m","300",780,234000]
[8,"人行道防撞栏杆","1.栏杆材质、规格 ：钢管、立柱、锚栓钢材采用Q355C钢\n2.品种、工艺要求：具体详见人行道防撞护栏构造图，螺栓连接\n3.螺栓和预埋件的间隙采用涂漆封闭\n4.刷漆要求：灰色氟碳漆\n5.未尽事宜满足设计及现行技术、质量验收规范要求","m","300",650,195000]
[9,"中央防撞栏杆","1.栏杆材质、规格 ：Q355 C钢\n2.品种、工艺要求：具体详见车行道中央防撞护栏构造图，螺栓连接\n3.螺栓和预埋件的间隙采用涂漆封闭\n4.刷漆要求：灰色氟碳漆\n5.未尽事宜满足设计及现行技术、质量验收规范要求","m","150",950,142500]
[10,"C35混凝土栏杆底座","1.混凝土强度等级：C35（混凝土甲供）混凝土泵送方式及模板措施等投标人自行考虑，包含在综合单价内\n2.混凝土运输及浇筑方式：投标人自行考虑\n3.未尽事宜满足设计及现行技术、质量验收规范要求","m3","38.5",420,16170]
[11,"C30混凝土灯杆底座","1.名称、部位：栏杆底座（混凝土甲供）混凝土泵送方式及模板措施等投标人自行考虑，包含在综合单价内 \n2.混凝土强度等级：C30\n3.混凝土运输及浇筑方式：投标人自行考虑\n4.未尽事宜满足设计及现行技术、质量验收规范要求","m3","2.04",420,856.8]
[12,"防抛网隔音屏","1.材料品种：详防抛网构造图\n2.结构形式：详防抛网构造图 \n3.油漆品种、工艺要求：详设计施工图 \n4.包含二次深化设计费用\n5.未尽事宜满足设计及现行技术、质量验收规范要求\n","m2","300",380,114000]
[13,"预埋铁件","1.材料种类：钢板、钢筋、螺栓等预埋件综合考虑（预埋件甲供，栏杆预埋件在栏杆综合单价中）\n2.材料规格：详见设计施工图\n3.含防锈处理\n4.未尽事宜满足设计及现行技术、质量验收规范要求","t","11.08",1200,13296]
["二","上部结构 ",null," "," "]
[1,"板式橡胶支座","1.材质：板式橡胶支座（甲供）\n2.规格、型号：详见设计施工图\n3.形式：板式\n4.未尽事宜满足设计及现行技术、质量验收规范要求","个","112",120,{"$f":"E19*F19","v":13440}]
[2,"C50预制混凝土T形梁","1.部位：T型梁 （混凝土甲供）\n2.图集、图纸名称：1-SO2Q015\n3.工作内容：包括但不限于搭设工作平台、脚手架及模板制作（钢模板租赁费用单独考虑）、安、拆、修、涂脱模剂、搬运、堆放，混凝土灌注、养护、成品梁移运存放，预留预埋件等全部工作内容；支座安装、梁体安装、梁体就位，过跨、T梁临时固定牢固及其他附属工作；\n4.计量规则：依据图纸所示，以实际完成并经双方验收合格的混凝土工程量为准；除甲供材外：其他附属材料均自行购买，已包含在此单价中\n5.吊装及安装方式、运输方式：投标人自行考虑\n6.预制梁达到清水混凝土效果，如达不到效果自行处理，费用自行承担。预制、堆放场地由甲方指定，预制场辅材、钢模板、设备、场地的硬化（混凝土甲供）由投标人负责、场地使用完成后的拆除由投标人负责，过铁路通道部分需搭设满堂脚手架并且由专人引导负责\n7.未尽事宜满足设计及现行技术、质量验收规范要求\n","m3","2229.1",600,1337460]
[3,"C-75塑料波纹管","1.材料品种：塑料波纹管\n2.管径：φ75mm\n3.位置：T型梁处\n4.未尽事宜满足设计及现行技术、质量验收规范要求","m",7718.4,9,69465.6]
[4,"后张法预应力钢绞线制作安装（钢绞线甲供）","1.钢绞线及锚夹具、垫板卸车搬运至甲方指定地点后覆盖、制作安装预应力钢绞线：\n2.工作内容：包含搭拆临时脚手架及操作平台；材料卸车、场内材料倒运；钢绞线制束、穿束，安锚具、锚垫板等；张拉、切割，砼凿毛、清洗孔道，压浆，封锚头，材料运输；按设计图纸为完成本项工作的全部工作内容。                                                        3、计量规则：在设计数量范围内，以现场完成的钢绞线重量计算，钢绞线长度按两端锚具间的理论长度计算，锚具外的工作长度不予计量；锚具、管道、锚板及联结钢板等不单独计量；除甲供材外，其他附属材料均自行购买，已包含在此单价中。                              4.未尽事宜满足设计及现行技术、质量验收规范要求","t",96.74,1500,145110]
[5,"现浇C50混凝土箱梁横隔板、湿接缝","1.部位:横隔板、湿接缝\n2.混凝土强度等级：C50（混凝土甲供）混凝土泵送方式、模板措施、脚手架费用等投标人自行考虑，包含在综合单价内\n3.混凝土运输及浇筑方式：投标人自行考虑\n4.未尽事宜满足设计及现行技术、质量验收规范要求","m3","237.12",520,123302.4]
[6,"支座预埋钢板、调平钢板、锚固钢筋","1.材料种类：钢板、钢筋、螺栓等预埋件综合考虑（主材甲供）\n2.材料规格：详见设计施工图\n3.含防锈处理\n4.未尽事宜满足设计及现行技术、质量验收规范要求","t","8.091",1200,9709.2]
[7,"现浇混凝土支座垫石 C40","1.部位:垫石\n2.混凝土强度等级：C40（混凝土甲供）混凝土泵送方式、模板措施、脚手架费用等投标人自行考虑，包含在综合单价内\n3.混凝土运输及浇筑方式：投标人自行考虑\n4.未尽事宜满足设计及现行技术、质量验收规范要求","m3","4.6",520,2392]
[8,"现浇混凝土支座垫石 C35","1.部位:垫石\n2.混凝土强度等级：C35（混凝土甲供）混凝土泵送方式、模板措施、脚手架费用等投标人自行考虑，包含在综合单价内\n3.混凝土运输及浇筑方式：投标人自行考虑\n4.未尽事宜满足设计及现行技术、质量验收规范要求","m3","1.5",520,780]
[9,"桥梁80型伸缩缝","1.材料品种、规格：桥梁80型伸缩缝\n2.混凝土等级：C50 钢纤维参量为40kg/m3\n3.具体做法详见设计施工图\n4.混凝土运输及浇筑方式：投标人自行考虑\n5.未尽事宜满足设计及现行技术、质量验收规范要求","m","49",500,24500]
[10,"集水槽铸铁盖板","1.材料：铸铁\n2.规格、尺寸：240mm×500mm\n3.具体做法详见设计施工图\n4.未尽事宜满足设计及现行技术、质量验收规范要求","套","36",165,5940]
[11,"集水槽（含三通）","1.材料：PVC\n2.规格、尺寸：32×32×15mm\n3.具体做法详见设计施工图\n4.未尽事宜满足设计及现行技术、质量验收规范要求","套","36",330,11880]
[12,"DN150mmPVC泄水管","1.材料品种：PVC管 \n2.管径：φ150mm\n3.泄水孔离地面1m处设置清扫口\n4.未尽事宜满足设计及现行技术、质量验收规范要求","m","18",30,540]
[13,"DN315mmPVC排水管","1.材料品种：PVC管 \n2.管径：φ315mm\n3.泄水孔离地面1m处设置清扫口\n4.管道采用配套固定件，间隔1m左右固定\n5.未尽事宜满足设计及现行技术、质量验收规范要求","m","300",120,36000]
[14,"涂料","1．材料品种： 环氧封闭漆一道≤50μm、环氧树脂漆一道140μm、氟碳漆一道60μm\n2．部位：桥墩、混凝土主梁、桥台外露部分外表面、混凝土附属设施(路缘石和挂板外表面)，脚手架费用综合考虑，具体详见设计施工图\n3.涂刷方式：投标人自行考虑\n4.未尽事宜满足设计及现行技术、质量验收规范要求","m2","17518.9",75,1313917.5]
["三","下部结构 ",null," "," "]
[1,"承台土石方开挖、回填、弃土","1、土石类别：综合                                            2、开挖深度：完成至设计标高要求                              3、开挖、回填、弃土方式：投标人自行考虑                       4、工程量以开挖方量计取                                      5、满足设计及其它规范要求","m3",{"$f":"(566.72+78.7)*1.2","v":774.504},17,{"$f":"E34*F34","v":13166.568}]
[2,"混凝土垫层 C20 （承台）","1.厚度：综合考虑\n2.混凝土强度等级：C20商品砼（混凝土甲供），混凝土泵送方式、模板措施、脚手架费用等投标人自行考虑，包含在综合单价内\n3.其余做法要求：满足设计及现行施工技术、质量验收规范要求","m3","78.7",120,9444]
[3,"混凝土台帽 C35","1.混凝土强度等级：C35（混凝土甲供）混凝土泵送方式、模板措施、脚手架费用等投标人自行考虑，包含在综合单价内\n2.混凝土运输及浇筑方式：投标人自行考虑\n3.未尽事宜满足设计及现行技术、质量验收规范要求","m3","39.42",210,8278.2]
[4,"混凝土桥台 C35","1.混凝土强度等级：C35（混凝土甲供）混凝土泵送方式、模板措施、脚手架费用等投标人自行考虑，包含在综合单价内\n2.混凝土运输及浇筑方式：投标人自行考虑\n3.未尽事宜满足设计及现行技术、质量验收规范要求","m3","610.5",210,128205]
[5,"混凝土承台 C35","1.混凝土强度等级：C35（混凝土甲供）混凝土泵送方式及模板措施等投标人自行考虑，包含在综合单价内\n2.混凝土运输及浇筑方式：投标人自行考虑\n3.未尽事宜满足设计及现行技术、质量验收规范要求","m3","566.72",210,119011.2]
[6,"混凝土盖梁 C40","1.混凝土强度等级：C40（混凝土甲供）混凝土泵送方式、模板措施、脚手架费用等投标人自行考虑，包含在综合单价内\n2.混凝土运输及浇筑方式：投标人自行考虑\n3.未尽事宜满足设计及现行技术、质量验收规范要求","m3","366",380,139080]
[7,"混凝土桥墩 C40","1.混凝土强度等级：C40（混凝土甲供）混凝土泵送方式、模板措施、脚手架费用等投标人自行考虑，包含在综合单价内\n2.混凝土运输及浇筑方式：投标人自行考虑\n3.未尽事宜满足设计及现行技术、质量验收规范要求","m3","196.6",380,74708]
[8,"混凝土桥头搭板 C30","1.混凝土强度等级：C30（混凝土甲供）混凝土泵送方式、模板措施、脚手架费用等投标人自行考虑，包含在综合单价内\n2.混凝土运输及浇筑方式：投标人自行考虑\n3.未尽事宜满足设计及现行技术、质量验收规范要求","m3","144",140,20160]
[9,"搭板 20cm厚4%水泥稳定碎石","1.水泥含量：4% \n2.石料规格：综合\n3.厚度：20cm\n4.未尽事宜满足设计及现行技术、质量验收规范要求","m2","480",52,24960]
[10,"搭板 沥青玛蹄脂填缝","1.嵌缝材料种类 沥青玛蹄脂填缝\n2.未尽事宜满足设计及现行技术、质量验收规范要求","m","60",10,600]
[11,"搭板 1cm油毛毡垫层","1.部位 ：搭板\n2.材料品种、规格 1cm油毛毡\n3.未尽事宜满足设计及现行技术、质量验收规范要求\n","m2","18",3,54]
[12,"300mm厚粘土封层","1.密实度要求：满足设计及规范要求\n2.填方材料品种： 粘土\n3.填方粒径要求 ：投标人自行考虑\n4.填方来源、运距：投标人自行考虑\n5.未尽事宜满足设计及现行技术、质量验收规范要求","m3","20.09",50,1004.5]
[13,"级配碎石滤层","1.材料品种、规格 ：级配碎石\n2.未尽事宜满足设计及现行技术、质量验收规范要求","m3","6.5",190,1235]
[14,"排水管 PVC-U DN50mm","1.材料品种： PVC-U DN50mm\n2.管径： DN50mm\n3.未尽事宜满足设计及现行技术、质量验收规范要求\n","m","91.26",17,1551.42]
["四","钢筋工程 ",null," "," "]
[1,"现浇构件钢筋 螺纹钢≤φ10mm","1.钢筋种类、规格： 螺纹钢≤φ10mm（钢筋甲供）、抗震钢筋的采用根据设计要求\n2.钢筋连接方式：各种连接方式投标人综合考虑在报价中\n3.其他：甲方将钢筋成品运至现场指定点后的卸车、堆放、储存、场内转运、保护、及除锈等工作；钢筋吊运、安装、固定、保护层垫块安装以及其他相关附属及所有工作，钢筋制作棚与桩基班组共用，如不能共用，需由投标人自行搭设，不再单独计取费用\n4.计量规则：.依据图纸所示，按钢筋设计重量计算，不计搭接、损耗、固定钢筋的材料、定位架立钢筋、吊装钢筋、钢板、铁丝焊条等，除甲供材外，其他附属材料均自行购买，已包含在此单价中\n5.未尽事宜满足设计及现行技术、质量验收规范要求","t","44.782",1000,{"$f":"E49*F49","v":44782}]
[2,"现浇构件钢筋 螺纹钢≤φ10mm （含刷环氧树脂涂层） ","1.钢筋种类、规格：螺纹钢 ≤φ10mm、（钢筋甲供）抗震钢筋的采用根据设计要求\n2.钢筋连接方式：各种连接方式投标人综合考虑在报价中\n3.其他：甲方将钢筋成品运至现场指定点后的卸车、堆放、储存、场内转运、保护、及除锈、刷环氧树脂涂层等工作；钢筋吊运、安装、固定、保护层垫块安装以及其他相关附属及所有工作，钢筋制作棚与桩基班组共用，如不能共用，需由投标人自行搭设，不再单独计取费用\n4.计量规则：依据图纸所示，按钢筋设计重量计算，不计搭接、损耗、固定钢筋的材料、定位架立钢筋、吊装钢筋、钢板、铁丝焊条等，除甲供材外，其他附属材料均自行购买，已包含在此单价中\n5.未尽事宜满足设计及现行技术、质量验收规范要求","t","1.088",1500,1632]
[3,"现浇构件钢筋 螺纹钢φ12-14mm","1.钢筋种类、规格：螺纹钢 φ12-14mm、（钢筋甲供）抗震钢筋的采用根据设计要求\n2.钢筋连接方式：各种连接方式投标人综合考虑在报价中\n3.其他：甲方将钢筋成品运至现场指定点后的卸车、堆放、储存、场内转运、保护、及除锈等工作；钢筋吊运、安装、固定、保护层垫块安装以及其他相关附属及所有工作，钢筋制作棚与桩基班组共用，如不能共用，需由投标人自行搭设，不再单独计取费用\n4.计量规则：依据图纸所示，按钢筋设计重量计算，不计搭接、损耗、固定钢筋的材料、定位架立钢筋、吊装钢筋、钢板、铁丝焊条等，除甲供材外，其他附属材料均自行购买，已包含在此单价中\n5.未尽事宜满足设计及现行技术、质量验收规范要求\n","t","133.404",1000,133404]
[4,"现浇构件钢筋 螺纹钢＞φ16mm","1.钢筋种类、规格：螺纹钢 ＞φ16mm（钢筋甲供）、抗震钢筋的采用根据设计要求\n2.钢筋连接方式：各种连接方式投标人综合考虑在报价中\n3.其他：甲方将钢筋成品运至现场指定点后的卸车、堆放、储存、场内转运、保护、及除锈等工作；钢筋吊运、安装、固定、保护层垫块安装以及其他相关附属及所有工作，钢筋制作棚与桩基班组共用，如不能共用，需由投标人自行搭设，不再单独计取费用\n4.计量规则：依据图纸所示，按钢筋设计重量计算，不计搭接、损耗、固定钢筋的材料、定位架立钢筋、吊装钢筋、钢板、铁丝焊条等，除甲供材外，其他附属材料均自行购买，已包含在此单价中\n5.未尽事宜满足设计及现行技术、质量验收规范要求","t",{"$f":"184.483+454","v":638.483},1000,638483]
["五","临设/脚手架工程"]
[1,"预制场及台座、枕梁混凝土浇筑（商品混凝土甲供）","1.部位:预制场及台座、枕梁混凝土浇筑\n2.混凝土强度等级：混凝土规格综合（商品混凝土甲供）混凝土泵送方式投标人自行考虑，存梁区枕梁上部枕木及台座pvc50管包含在综合单价内，不再单独计算\n3.混凝土运输及浇筑方式：投标人自行考虑\n4.未尽事宜满足设计及现行技术、质量验收规范要求","m3",780,60,{"$f":"E54*F54","v":46800},null,null,"按实结算"]
[2,"钢筋制作、不锈钢板制作安装、角钢制作安装（钢材甲供）","1.钢筋种类、规格：钢筋、不锈钢板、角钢综合（甲供）、抗震钢筋的采用根据设计要求\n2.钢筋连接方式：各种连接方式投标人综合考虑在报价中\n3.其他：甲方将钢筋成品运至现场指定点后的卸车、堆放、储存、场内转运、保护、及除锈等工作；钢筋吊运、安装、固定、保护层垫块安装以及其他相关附属及所有工作，钢筋制作棚与桩基班组公用，如不能公用，须由投标人自行搭设，不再单独计取费用。\n4.计量规则：依据图纸所示，按钢筋设计重量计算，不计搭接、损耗、固定钢筋的材料、定位架立钢筋、吊装钢筋、钢板、铁丝焊条等，除甲供材外，其他附属材料均自行购买，已包含在此单价中\n5.未尽事宜满足设计及现行技术、质量验收规范要求","t",{"$f":"6+6.8+1.35","v":14.15},1000,14150,null,null,"按实结算"]
[3,"预制场台座模板","1.部位:预制场台座\n2.模板安拆、脚手架费用等投标人自行考虑，包含在综合单价内\n3.模板、钢管脚手架等运输吊装：投标人自行考虑\n4.未尽事宜满足设计及现行技术、质量验收规范要求","m2",600,60,36000,null,null,"按实结算"]
[4,"预制场破碎、外运","1.废弃料品种：拆除预制场混凝土（钢筋由投标人自行处理，钢板及角钢拆除后需交由项目部处理）\n2.场外运距、弃土场费用：投标人自行考虑\n3.未尽事宜满足设计及现行技术、质量验收规范要求","m3",780,50,39000,null,null,"按实结算"]
[5,"桥涵支架 满堂式钢管脚手架","1．名称：满堂式钢管支架 \n2．搭设高度及方式：投标人自行综合考虑\n3.本项目投标人应根据施工经验，现场实际情况和企业自身情况综合报价，包含搭设脚手架需要的所有材料、人工、机械、辅助措施等，需满足监理、业主及相关规范要求，搭设前应编制专项方案并通过监理和业主审核认可后施工\n4.未尽事宜满足设计及现行技术、质量验收规范要求","m3",33000,20,660000,null,null,"按实结算"]
[6,"跨铁路防护棚架","1、名称：跨铁路防护棚架                                      2、搭设要求：根据最终经专家论证后的施工方案确定                             3、本项目投标人应根据施工经验，现场实际情况和企业自身情况综合报价，包含搭设脚手架需要的所有材料、人工、机械、辅助措施等，需满足监理、业主及相关规范要求，搭设前应编制专项方案并通过监理和业主审核认可后施工                     \n4、包含临近铁路防护人员、铁路安全指挥等                                  5、满足设计及其它规范要求","项",1,150000,150000,null,null,"总价包干"]
[15,"合计",{"$nulls":4},{"$f":"SUM(G6:G59)","v":6365988.39}]
["1、班组应购买雇主责任险，并按照项目经理部安全文明施工要求规范施工；\n2、临水、临电的搭接：招标人提供用电接口或采用发电机发电（若用发电机供电，发电机和用油由招标人提供，投标人对发电机进行管理），招标人不提供用水接口，临时配电箱、用电线路、开关箱、水管、机具等所有材料、设备及安装费用由投标人自行考虑，包含在综合单价中；\n3、洗车池由项目经理部修建，车辆进出场项目经理部安排人员统一管理，车辆日常冲洗由投标人自行考虑；\n4、施工大门、围挡、广告布施工和维护由项目经理部负责；预制场地由甲方提供，投标人进场后预制场管理由投标人自行负责，钢筋制作棚可与桩基班组共用，如不能共用，需由投标人自行搭设，不再单独计取费用。\n5、临时道路修建及维护：投标人自行考虑，入口道路项目经理部负责，统一管理由项目经理部负责；桥梁预制构件/现浇构件制作安装等施工过程中的临边防护、安全防护措施由投标人负责；\n6、雾炮机、防尘网购买及使用油料、搭拆：项目经理部仅提供雾炮机和防尘网，油料及管理和搭拆投标人负责；\n7、公司logo安全帽、logo背心：由项目经理部统一采购，投标人领取，完成后按领取数量返还；\n8、甲供材料下车、二次转运及保管：由投标人负责，甲供材料以清单注明为准，未注明的均为乙供；甲供钢材损耗须控制在在5%以内，甲供商品砼损耗须控制在3%以内。\n9、检测项及检测费：施工内容的检测（复检）费用和送样由投标单位承担；（甲供材料的检测费由项目经理部承担）；\n10、其他要求：挖机、推土机、装载机需自带雾喷，所有机械设备进出场及安装费用不再单独考虑；\n11、民工按要求进行实名制打卡；\n12、投标人需配资料员，完成自己的所涉及资料，配合甲方按照甲方要求完成工程相关资料；\n13、投标人负责桥梁专项方案的编制和论证。"]

{"sheet":"机械租赁费","index":2,"n_rows":15,"n_cols":11,"rows_kept":15,"merged":[[0,0,0,10],[1,0,2,0],[1,1,2,1],[1,2,2,2],[1,3,2,3],[1,4,2,4],[1,5,2,5],[1,6,1,9],[1,10,2,10],[3,1,3,2],[9,1,9,2],[10,0,11,0],[10,1,11,1],[10,2,11,2],[10,3,11,3],[10,4,11,4],[10,5,11,5],[10,6,10,9],[10,10,11,10],[14,0,14,10]]}
["2024年“A”项目桥梁工程工程机械租赁清单与报价表"]
["序号","项目名称","项目特征描述","单位","单项最高控制价（含税）","工程量","投标报价（含税）",{"$nulls":3},"备注"]
[{"$nulls":6},"租赁时间\n（月）","租金\n(元/月）","含税合价（元）","机械明细（投标人必填）"]
[" 一","机械租赁",null," ",null," "]
[1,"垂直运输机械进出场费","1.机械设备名称：垂直运输机械（如履带式吊车、龙门吊等）进出场\n2.规格、型号：投标人项目特点自行考虑\n3.本项目投标人应根据施工经验，现场实际情况和企业自身情况综合报价\n4.未尽事宜满足设计及现行技术、质量验收规范要求","项",100000,1,"/","/",null,null,"此项按项报价，总价包干，但需注明具体机械名称和数量明细"]
[2,"垂直运输机械租赁费（如履带式吊车、龙门吊等）","1.机械设备名称：垂直运输机械（如履带式吊车、龙门吊等）\n2.规格、型号：投标人项目特点自行考虑\n3.本项目投标人应根据施工经验及施工工期，现场实际情况和企业自身情况综合报价，安装、拆除、周转、报检及其余不可预见费用投标人自行考虑\n4.未尽事宜满足设计及现行技术、质量验收规范要求","台",300000,{"$nulls":5},"本项总控制价为300000元，投标人自行根据施工组织、施工和工期安排填报机械租赁时间（月）和月租金并报总价，总价包干"]
[3,"架桥机械进出场费","1.机械设备名称：架桥机械进出场（包含双导梁安装及拆除）\n2.规格、型号：投标人项目特点自行考虑\n3.本项目投标人应根据施工经验，现场实际情况和企业自身情况综合报价\n4.未尽事宜满足设计及现行技术、质量验收规范要求","台/次",200000,1,"/","/",null,null,"此项按项报价，总价包干，但需注明具体机械名称及数量明细。如招标人原因造成架桥机械多次进出场的，按实际进出场台/次结算。"]
[4,"架桥机械租赁费","1.机械设备名称：架桥机械\n2.规格、型号：投标人项目特点自行考虑\n3.本项目投标人应根据施工经验及施工工期，现场实际情况和企业自身情况综合报价\n4.未尽事宜满足设计及现行技术、质量验收规范要求","项",200000,{"$nulls":5},"本项总控制价为200000元，投标人自行根据施工组织、施工工艺和工期安排填报机械租赁时间（月）和月租金并报总价，总价包干。"]
[5,"运梁机械租赁费用","1.机械设备名称：运梁机械\n2.规格、型号：投标人项目特点自行考虑\n3.本项目投标人应根据施工经验及施工工期，现场实际情况和企业自身情况综合报价，含进出场费及租赁费\n4.未尽事宜满足设计及现行技术、质量验收规范要求","项",60000,1,{"$nulls":4},"本项总控制价为60000元，投标人自行根据施工组织、施工工艺和工期安排填报机械租赁时间（月）和月租金并报总价，总价包干"]
["二","模板租赁"]
["序号","项目名称","项目特征描述","单位","单项控制价（含税）","工程量","投标报价（含税）",{"$nulls":3},"备注"]
[{"$nulls":6},"租赁时间\n（天）","租赁单价\n（元/m2/天）","含税合价（元）","投标人备注"]
[1,"钢模板租赁","1.材料名称：钢模板\n2.规格、型号：投标人填报\n3.本项目投标人应根据施工组织、施工工艺及施工工期，现场实际情况和企业自身情况综合报价，含运费、上下车费和租赁费等\n4.未尽事宜满足设计及现行技术、质量验收规范要求","m2",150000,{"$nulls":5},"本项总控制价为150000元，投标人自行根据施工组织、施工工艺和工期安排填报模板租赁时间（月）和月租金并报总价，不限制投标人采用租赁或购买模板的方式，总价包干"]
[6,"合计",null,null,{"$f":"SUM(E5:E13)","v":1010000}]
["补充说明：\n1、机械进出场费实行总价包干，投标人自行根据总工期及自身进度安排计划考虑进出场台次；\n2、机械租赁费实行总价包干，投标人自行根据总工期及自身进度安排计划考虑租赁时间和租赁单价；\n3、机械进出场费用和租赁费已包含机械的检测费、保养费、维修费、机操手费用、运行油料、水电费用等所有费用；\n4、机械运行期间应满足环保要求。\n5、投标人在填报钢模板租赁工程量时仅限需使用钢模板的部位，其余木模板费用已包含在相应混凝土构件单价中。"]